bitfinex/quotes_ETHUSD_20250821
["timestamp","ask_amount","ask_price","bid_price","bid_amount"]
[1755820216842,0.001,4221.7,4221.6,7.8488762]
[1755820217040,0.001,4221.7,4221.6,8.3055762]
[1755820222186,0.001,4222.2,4221.9,2.36856397]
[1755820222370,0.001,4222.2,4222.1,0.3037]
[1755820222769,0.001,4222.2,4222.1,6.12888961]
[1755820223158,0.001,4222.2,4222.1,5.67218961]
[1755820223358,0.001,4222.2,4222.1,6.12888961]
[1755820225160,0.001,4222.2,4222.1,6.22383461]
[1755820225388,0.001,4222.2,4222.1,7.63524725]
[1755820226204,0.001,4222.2,4222.1,7.83854725]
[1755820226650,0.001,4222.2,4222.1,0.094945]
[1755820226651,6.5723,4222.2,4222.1,0.094945]
[1755820226854,6.5723,4222.2,4221.3,2.36889553]
[1755820227055,0.46005063,4222.1,4221.4,0.712312]
[1755820227254,0.2908,4221.5,4221.4,0.712312]
[1755820227485,0.2908,4221.5,4221.4,3.08119436]
[1755820227701,0.7273,4221.5,4221.4,3.08119436]
[1755820227863,0.7273,4221.5,4221.4,3.712312]
[1755820228069,0.7273,4221.5,4221.4,1.55734091]
[1755820228276,0.7273,4221.5,4221.1,2.36903775]
[1755820228477,0.7273,4221.5,4221.3,2.36892891]
[1755820228679,0.2908,4221.5,4221.3,3.08126214]
[1755820228882,0.4365,4221.4,4221.3,3.712326]
[1755820229083,0.7273,4221.4,4221.3,6.08126447]
[1755820229289,0.7273,4221.4,4221.3,6.92629541]
[1755820231262,4.022,4221.7,4221.4,3.0]
[1755820231461,4.022,4221.7,4221.4,2.36888236]
[1755820231462,0.2908,4221.5,4221.4,2.36888236]
[1755820231688,0.2908,4221.5,4221.3,0.712326]
[1755820232166,0.2908,4221.5,4221.4,2.36888236]
[1755820232771,0.7273,4221.5,4221.3,0.712326]
[1755820232982,0.7273,4221.5,4220.8,0.024]
[1755820232983,2.28205063,4221.4,4220.8,0.024]
[1755820233183,0.2908,4220.9,4220.8,0.024]
[1755820233388,4.3128,4220.9,4220.8,0.024]
[1755820233796,4.7493,4220.9,4220.8,0.024]
[1755820237212,4.7493,4220.9,4220.4,2.34742918]
[1755820237408,4.3128,4220.9,4220.5,2.36935407]
[1755820237612,0.4365,4220.8,4220.4,2.36942844]
[1755820238002,0.4365,4220.8,4220.3,0.716486]
[1755820238181,0.4365,4220.8,4220.4,2.36939611]
[1755820238381,4.022,4220.9,4220.4,2.36939611]
[1755820238581,4.022,4220.9,4220.4,2.36944365]
[1755820238582,0.2995,4220.5,4220.4,2.36944365]
[1755820239694,0.2995,4220.5,4220.3,0.716486]
[1755820239900,0.2995,4220.5,4220.4,2.36944365]
[1755820240103,4.3215,4220.5,4220.4,2.36944365]
[1755820240310,4.022,4220.5,4220.4,2.36944365]
[1755820240614,0.4622,4220.8,4220.6,2.36931519]
[1755820240912,0.02355063,4221.3,4220.7,2.67313813]
[1755820241118,4.022,4221.2,4221.0,2.36910553]
[1755820241481,4.022,4221.1,4221.0,2.36910553]
[1755820241693,4.3215,4221.1,4220.8,5.36921675]
[1755820242113,4.3215,4221.1,4220.8,3.0]
[1755820242411,2.2842,4221.4,4221.1,2.3690279]
[1755820242613,0.2995,4221.2,4220.7,0.712429]
[1755820242785,0.2995,4221.2,4220.7,3.08169576]
[1755820242976,0.2995,4221.2,4220.9,2.36912374]
[1755820243292,0.2995,4221.2,4221.0,2.36910227]
[1755820243687,0.2995,4221.2,4220.9,2.36915893]
[1755820243895,0.4622,4221.1,4220.7,0.712429]
[1755820244092,0.2995,4220.8,4220.7,0.712429]
[1755820244817,0.2995,4220.8,4220.2,0.17839258]
[1755820244818,4.7837,4220.8,4220.2,0.17839258]
[1755820245012,0.02355063,4220.7,4220.2,2.54791243]
[1755820245191,0.02355063,4220.7,4220.3,2.37349979]
[1755820245192,0.2995,4220.4,4220.3,2.37349979]
[1755820245715,4.3215,4220.4,4220.3,5.37349979]
[1755820246222,0.2995,4220.4,4220.3,3.004]
[1755820246422,4.3215,4220.4,4220.3,5.37349979]
[1755820246810,4.3215,4220.4,4220.3,3.004]
[1755820247008,4.3215,4220.4,4220.3,5.37349979]
[1755820248003,0.2995,4220.4,4220.3,3.004]
[1755820248202,4.3215,4220.4,4220.3,5.37349979]
[1755820249096,4.3215,4220.4,4220.3,3.004]
[1755820249425,4.3215,4220.4,4220.3,5.37349979]
[1755820249916,4.3215,4220.4,4220.3,3.004]
[1755820250118,4.3215,4220.4,4220.3,0.004]
[1755820250119,4.7837,4220.4,4220.3,0.004]
[1755820251494,5.44437,4220.4,4220.3,0.004]
[1755820251697,12.33337999,4220.4,4220.3,0.004]
[1755820252521,5.44437,4220.4,4220.3,0.004]
[1755820256246,1.42237,4220.4,4220.3,0.004]
[1755820256422,4.80725063,4220.4,4220.3,0.004]
[1755820256726,4.7837,4220.4,4220.3,0.004]
[1755820256927,0.7617,4220.4,4220.3,0.004]
[1755820257100,4.80725063,4220.4,4220.3,0.004]
[1755820257429,4.7837,4220.4,4220.3,0.004]
[1755820257727,5.44437,4220.4,4220.3,0.004]
[1755820260308,1.823,4220.6,4220.3,0.3079]
[1755820260526,4.023,4220.5,4220.4,3.4647]
[1755820260703,4.023,4220.5,4220.4,3.13804365]
[1755820260909,4.023,4220.5,4220.4,0.7686]
[1755820261236,4.023,4220.5,4220.4,6.13804365]
[1755820261442,1.823,4220.6,4220.5,6.02938751]
[1755820261621,1.823,4220.6,4220.5,6.33328751]
[1755820261622,5.846,4220.6,4220.5,6.33328751]
[1755820261937,4.023,4220.6,4220.5,6.79798751]
[1755820262441,0.001,4220.9,4220.8,2.3692191]
[1755820262659,4.024,4220.9,4220.8,6.61352259]
[1755820262858,4.024,4220.9,4220.8,7.7145304]
[1755820264762,0.001,4220.9,4220.8,7.7145304]
[1755820267730,0.001,4220.9,4220.8,7.89019321]
[1755820269664,0.001,4221.3,4221.2,3.02899459]
[1755820269869,0.001,4221.3,4221.2,6.96598399]
[1755820270162,0.001,4221.3,4221.2,6.94229405]
[1755820270353,0.001,4221.3,4221.2,7.40099405]
[1755820271366,0.02,4221.8,4221.7,3.02871402]
[1755820271665,0.02,4221.8,4221.7,6.36280116]
[1755820271862,0.02,4221.8,4221.7,7.67097306]
[1755820272250,0.02,4221.8,4221.7,7.76591806]
[1755820272765,0.001,4222.3,4222.1,3.02848961]
[1755820272974,1.824,4222.6,4222.2,0.66]
[1755820272975,0.001,4222.6,4222.2,0.66]
[1755820273175,1e-08,4222.6,4222.5,3.33866524]
[1755820273473,0.45840001,4224.2,4223.1,3.66]
[1755820273474,4.021,4223.9,4223.1,3.66]
[1755820273789,4.021,4223.9,4223.2,6.3382727]
[1755820274269,4.021,4223.9,4223.2,7.0501387]
[1755820274430,1e-08,4224.2,4223.2,7.0501387]
[1755820275782,1e-08,4224.2,4223.2,7.5088387]
[1755820278650,0.4584,4223.7,4223.2,6.7397387]
[1755820278882,0.4584,4223.7,4223.2,7.65050743]
[1755820279071,0.7592,4223.3,4223.2,3.711866]
[1755820279286,0.7592,4223.3,4223.2,6.0797387]
[1755820280361,0.3008,4223.3,4223.2,6.0797387]
[1755820280548,0.001,4223.3,4223.2,7.5088387]
[1755820280995,0.001,4223.3,4223.2,7.68509519]
[1755820281328,1e-08,4224.2,4223.2,7.68509519]
[1755820281329,1e-08,4223.8,4223.7,3.02759239]
[1755820281592,1e-08,4224.1,4224.0,3.02742424]
[1755820281796,1e-08,4224.1,4224.0,38.93756359]
[1755820282087,1e-08,4224.1,4224.0,34.09290735]
[1755820282279,1e-08,4224.1,4224.0,25.82976035]
[1755820282594,1e-08,4224.1,4224.0,29.167775]
[1755820282791,1e-08,4224.1,4224.0,26.791942]
[1755820282958,1e-08,4224.1,4224.0,11.89610589]
[1755820283287,1e-08,4224.1,4224.0,17.01978489]
[1755820283692,1e-08,4224.1,4224.0,14.12153489]
[1755820283852,1e-08,4224.1,4224.0,11.87258689]
[1755820284053,1e-08,4224.1,4224.0,30.30719689]
[1755820284254,1e-08,4224.5,4224.4,3.02720007]
[1755820284490,1e-08,4224.5,4224.4,11.22975911]
[1755820284789,1e-08,4224.5,4224.4,11.68845911]
[1755820285769,1e-08,4224.5,4224.4,11.22975911]
[1755820286212,1e-08,4224.5,4224.4,11.68845911]
[1755820288706,1e-08,4224.5,4224.4,11.80685911]
[1755820290787,1e-08,4224.5,4224.4,7.32915911]
[1755820291013,1e-08,4224.5,4224.4,11.34715911]
[1755820291518,1e-08,4224.5,4224.4,11.80585911]
[1755820291708,0.43140001,4225.2,4225.1,2.36680788]
[1755820291913,0.73120001,4225.2,4225.1,2.36680788]
[1755820292209,0.73120001,4225.2,4225.1,6.24197681]
[1755820292774,0.73120001,4225.2,4225.1,6.95356181]
[1755820293619,0.73120001,4225.2,4225.1,6.07839288]
[1755820294105,0.7582,4225.2,4225.1,6.07839288]
[1755820295210,0.2998,4225.2,4225.1,6.73839288]
[1755820295778,0.7582,4225.2,4225.1,6.73839288]
[1755820297211,0.7582,4225.2,4225.1,6.07839288]
[1755820299089,0.001,4225.4,4225.3,3.02669585]
[1755820299288,0.001,4225.4,4225.3,6.02669585]
[1755820299495,0.3012,4225.4,4225.3,6.02669585]
[1755820299915,0.001,4225.4,4225.3,6.02669585]
[1755820300343,0.3012,4225.4,4225.3,6.02669585]
[1755820300507,0.3012,4225.4,4225.3,7.423252]
[1755820301605,0.001,4225.4,4225.3,7.423252]
[1755820301806,0.3012,4225.4,4225.3,7.423252]
[1755820303030,0.001,4225.4,4225.3,7.423252]
[1755820303436,0.3012,4225.4,4225.3,7.423252]
[1755820303870,0.7722,4225.4,4225.3,7.423252]
[1755820304149,0.7722,4225.4,4225.3,6.02669585]
[1755820304560,0.3012,4225.4,4225.3,6.02669585]
[1755820305054,0.7722,4225.4,4225.3,6.02669585]
[1755820305654,0.001,4225.4,4225.3,6.02669585]
[1755820306449,0.001,4225.4,4225.3,6.31709585]
[1755820306630,0.001,4225.4,4225.3,8.19699525]
[1755820307328,0.001,4225.4,4225.3,11.75869525]
[1755820308222,0.001,4225.4,4225.3,19.08373882]
[1755820309363,0.021,4225.8,4225.7,3.02647182]
[1755820309527,0.021,4225.8,4225.7,10.35653653]
[1755820309858,0.021,4225.8,4225.7,12.10491003]
[1755820310360,0.021,4225.8,4225.7,11.65061003]
[1755820311846,0.021,4225.8,4225.7,12.10491003]
[1755820312763,0.3212,4225.8,4225.7,7.34421003]
[1755820312963,0.021,4225.8,4225.7,7.63461003]
[1755820313264,0.021,4225.8,4225.7,11.64961003]
[1755820313761,0.021,4225.8,4225.7,12.10391003]
[1755820314574,0.001,4226.7,4226.3,0.66]
[1755820314728,0.001,4226.7,4226.6,6.31636791]
[1755820314931,0.001,4226.7,4226.6,10.44976791]
[1755820315133,0.001,4226.7,4226.6,10.90406791]
[1755820315660,1e-08,4226.8,4226.7,6.02591194]
[1755820315976,1e-08,4226.8,4226.7,16.43554494]
[1755820316273,1e-08,4226.8,4226.7,17.95327883]
[1755820316936,0.02,4227.8,4227.7,3.02535231]
[1755820316937,1e-08,4227.8,4227.7,3.02535231]
[1755820317278,1e-08,4227.8,4227.7,10.33075231]
[1755820317444,0.04355063,4229.8,4228.7,3.02479296]
[1755820317445,0.02,4229.8,4228.7,3.02479296]
[1755820317651,0.471,4229.7,4228.7,10.63267226]
[1755820318172,0.02,4229.8,4228.7,10.63267226]
[1755820318333,0.3202,4228.8,4228.7,10.34227226]
[1755820318536,0.7912,4228.8,4228.7,6.32727226]
[1755820318899,0.7912,4228.8,4228.7,10.34227226]
[1755820319073,0.7912,4228.8,4228.7,7.9774793]
[1755820319434,0.7912,4228.8,4228.7,6.32727226]
[1755820319640,0.7912,4228.8,4228.7,3.9624793]
[1755820319852,0.7912,4228.8,4228.7,6.32727226]
[1755820320174,0.7912,4228.8,4228.7,3.9624793]
[1755820320466,0.7912,4228.8,4228.7,3.66]
[1755820320780,0.7912,4228.8,4228.7,6.02479296]
[1755820321138,0.02,4228.8,4228.7,10.32919296]
[1755820321473,0.7912,4228.8,4228.7,7.2942021]
[1755820321778,0.02,4228.8,4228.7,9.38979296]
[1755820321934,0.02,4228.8,4228.7,10.04979296]
[1755820322450,0.02,4228.8,4228.7,10.34019296]
[1755820322655,0.02,4228.8,4228.7,10.04979296]
[1755820324188,1e-08,4228.8,4228.7,10.52216946]
[1755820324350,0.001,4229.7,4228.7,10.52216946]
[1755820324351,0.001,4229.7,4228.9,0.66]
[1755820324547,0.001,4229.7,4229.6,6.02428976]
[1755820324770,0.3012,4229.7,4229.6,10.06328976]
[1755820324950,0.7722,4229.7,4229.6,10.06328976]
[1755820325161,0.7722,4229.7,4229.6,7.26705539]
[1755820325563,0.7722,4229.7,4229.6,7.97793539]
[1755820326585,0.3012,4229.7,4229.6,7.97793539]
[1755820327486,0.001,4229.7,4229.6,7.97793539]
[1755820327687,0.001,4229.7,4229.6,12.01493539]
[1755820328053,0.7638,4229.7,4229.6,12.01493539]
[1755820329178,0.3012,4229.7,4229.6,12.01493539]
[1755820329557,0.001,4229.7,4229.6,7.97793539]
[1755820331703,0.001,4229.7,4229.6,8.27993539]
[1755820332368,0.001,4229.7,4229.6,8.72133539]
[1755820333921,0.001,4230.2,4230.0,3.66]
[1755820334069,0.001,4230.2,4230.1,10.93649738]
[1755820334460,0.3144,4230.2,4230.1,10.93549738]
[1755820334687,0.777,4230.2,4230.1,10.93549738]
[1755820334890,0.777,4230.2,4230.1,3.66]
[1755820335104,0.777,4230.2,4230.1,3.0]
[1755820335269,0.777,4230.2,4230.1,3.710822]
[1755820336062,0.777,4230.2,4230.1,0.710822]
[1755820336493,0.80055063,4230.2,4230.1,0.710822]
[1755820336659,0.80055063,4230.2,4228.8,2.36468407]
[1755820336660,1.06250569,4230.2,4228.8,2.36468407]
[1755820336865,0.59990569,4230.2,4228.8,2.36468407]
[1755820337102,0.4626,4230.1,4229.1,0.710991]
[1755820337273,0.3134,4229.2,4229.1,0.710991]
[1755820337478,0.776,4229.2,4229.1,6.07556029]
[1755820337700,0.001,4230.2,4229.4,2.36440156]
[1755820338023,0.001,4230.2,4230.1,3.3260103]
[1755820338321,1.819,4231.6,4230.7,6.02367504]
[1755820338526,0.4626,4232.1,4230.7,10.37667504]
[1755820338699,0.001,4231.1,4230.7,12.09211787]
[1755820338918,0.001,4231.1,4230.7,11.65071787]
[1755820339096,0.001,4231.1,4230.7,11.34871787]
[1755820339297,0.001,4231.1,4230.7,11.74546387]
[1755820341838,0.001,4231.1,4230.7,7.39246387]
[1755820342020,0.0533,4230.8,4230.7,11.44146387]
[1755820342722,0.0533,4230.8,4230.7,5.02878883]
[1755820342906,0.5116,4230.8,4230.7,3.094746]
[1755820343094,0.5116,4230.8,4230.7,0.094746]
[1755820344535,0.5126,4230.8,4230.7,0.094746]
[1755820344739,0.021,4230.8,4230.7,6.11842104]
[1755820345833,0.3344,4230.8,4230.7,6.11842104]
[1755820346033,0.3344,4230.8,4230.7,7.37123833]
[1755820346212,0.021,4230.8,4230.7,7.37123833]
[1755820347820,0.3344,4230.8,4230.7,7.37123833]
[1755820348421,0.797,4230.8,4230.7,7.37123833]
[1755820348626,0.797,4230.8,4230.7,3.094746]
[1755820350610,0.3344,4230.8,4230.7,5.48205779]
[1755820350945,0.3344,4230.8,4230.7,5.45842104]
[1755820351739,0.3344,4230.8,4230.7,3.094746]
[1755820351909,0.797,4230.8,4230.7,3.094746]
[1755820354431,0.797,4230.8,4230.7,5.45842104]
[1755820354625,0.797,4230.8,4230.7,3.094746]
[1755820356517,0.797,4230.8,4230.7,5.45842104]
[1755820356829,0.797,4230.8,4230.7,3.094746]
[1755820357844,0.797,4230.8,4230.7,0.094746]
[1755820358054,4.836,4230.8,4229.9,2.36411826]
[1755820358348,0.47075063,4230.7,4230.2,0.710863]
[1755820358661,0.2866,4230.3,4230.2,0.710863]
[1755820358867,0.7338,4230.3,4230.2,0.710863]
[1755820359165,0.7338,4230.3,4230.2,3.710863]
[1755820359733,0.7338,4230.3,4230.2,3.07481742]
[1755820360230,1.818,4230.6,4230.5,2.36378678]
[1755820360432,0.021,4230.8,4230.6,5.36371398]
[1755820360617,0.021,4230.8,4230.5,0.2981]
[1755820360618,0.021,4230.8,4230.5,2.36378676]
[1755820360818,0.2866,4230.6,4230.1,2.36396735]
[1755820361020,0.021,4230.8,4230.7,6.02367504]
[1755820361241,0.001,4231.1,4231.0,6.02350744]
[1755820361444,1e-08,4231.3,4231.2,6.02339572]
[1755820361645,1e-08,4231.3,4231.2,6.32149572]
[1755820361863,1e-08,4231.3,4231.2,6.77249572]
[1755820362351,0.02,4232.8,4232.4,3.66]
[1755820362547,0.02,4232.8,4232.7,2.36255817]
[1755820362956,0.02,4232.8,4232.7,2.38618375]
[1755820363269,0.02,4232.8,4232.7,6.09656275]
[1755820363438,0.02,4232.8,4232.7,6.07293717]
[1755820364029,0.02,4232.8,4232.7,7.03103717]
[1755820364230,0.02,4232.8,4232.7,8.14580787]
[1755820367655,0.02,4232.8,4232.7,8.44390787]
[1755820371064,0.001,4233.7,4233.6,6.02205593]
[1755820371572,0.2876,4233.7,4233.6,6.02205593]
[1755820371942,0.001,4233.7,4233.6,6.46925593]
[1755820372136,0.2876,4233.7,4233.6,6.46925593]
[1755820372472,0.001,4233.7,4233.6,6.46925593]
[1755820372670,0.001,4233.7,4233.6,7.75869454]
[1755820373434,0.001,4233.7,4233.6,8.05679454]
[1755820373633,0.001,4233.7,4233.6,7.75869454]
[1755820374085,0.001,4233.7,4233.6,8.05679454]
[1755820374576,0.001,4233.7,4233.6,7.75869454]
[1755820374746,0.001,4233.7,4233.6,8.05679454]
[1755820375464,0.001,4233.7,4233.6,7.75869454]
[1755820375839,0.001,4233.7,4233.6,8.05679454]
[1755820376255,0.001,4233.7,4233.6,7.75869454]
[1755820377082,0.7348,4233.7,4233.6,0.4472]
[1755820380450,0.75835063,4233.7,4233.6,0.4472]
[1755820380666,0.75835063,4233.7,4232.5,2.3626141]
[1755820380868,0.4472,4233.6,4232.5,2.3626141]
[1755820381173,0.02355063,4233.5,4232.7,0.710427]
[1755820381353,0.2866,4232.8,4232.7,0.710427]
[1755820381743,0.7338,4232.8,4232.7,0.710427]
[1755820382855,0.2866,4232.8,4232.7,6.07298517]
[1755820383058,1.817,4233.2,4232.8,3.0]
[1755820383272,1.817,4233.2,4232.7,6.07298517]
[1755820383273,0.02355063,4233.1,4232.7,3.07298517]
[1755820383470,0.47075063,4233.1,4232.7,2.36255817]
[1755820383762,0.47075063,4233.1,4232.8,2.36248835]
[1755820383763,0.4472,4233.1,4232.8,2.36248835]
[1755820383951,1.817,4233.2,4233.1,2.36233493]
[1755820384154,0.001,4233.7,4233.5,2.36210551]
[1755820384383,0.001,4233.7,4233.4,2.36216752]
[1755820384686,0.001,4233.7,4233.6,2.36205593]
[1755820384897,0.001,4233.7,4233.5,2.36210828]
[1755820385052,0.2866,4233.6,4233.2,3.0]
[1755820385257,0.2866,4233.6,4233.3,2.36222332]
[1755820385480,0.2866,4233.6,4233.4,2.36214222]
[1755820385784,0.2866,4233.6,4233.5,2.36211172]
[1755820386355,0.2866,4233.6,4233.2,5.36227792]
[1755820386356,0.2866,4233.6,4233.4,2.36215858]
[1755820386654,0.2866,4233.6,4233.5,2.36211172]
[1755820386854,0.2866,4233.6,4233.4,2.36214948]
[1755820387090,0.2866,4233.6,4233.4,2.36215997]
[1755820387655,0.001,4233.7,4233.5,0.2981]
[1755820387861,0.001,4233.7,4233.6,5.38567648]
[1755820388057,0.3066,4233.7,4233.5,3.0]
[1755820388266,0.4682,4233.6,4233.5,2.3620707]
[1755820388554,0.7738,4233.6,4233.5,2.3620707]
[1755820388954,0.3056,4233.6,4233.5,2.3620707]
[1755820389500,0.001,4233.7,4233.6,6.02205593]
[1755820389700,0.001,4233.7,4233.6,3.0]
[1755820390002,0.7748,4233.7,4233.5,2.36209022]
[1755820390305,0.7748,4233.7,4233.5,2.36207169]
[1755820390469,0.7748,4233.7,4233.1,3.710322]
[1755820390657,0.7748,4233.7,4233.6,2.36205593]
[1755820392363,0.3066,4233.7,4233.6,2.36205593]
[1755820393695,0.3066,4233.7,4233.2,3.0]
[1755820394019,0.3066,4233.7,4233.6,2.36205593]
[1755820394405,0.7748,4233.7,4233.0,3.0]
[1755820394586,0.7748,4233.7,4233.0,3.02237958]
[1755820394777,0.7748,4233.7,4233.3,2.36221606]
[1755820394974,0.4682,4233.6,4233.4,2.3621606]
[1755820395173,0.3066,4233.7,4233.4,2.3621606]
[1755820395174,0.7738,4233.5,4233.4,2.3621606]
[1755820395386,0.3056,4233.5,4233.4,2.3621606]
[1755820398003,0.001,4233.7,4233.4,2.3621606]
[1755820398004,0.001,4233.7,4233.4,2.6551606]
[1755820398203,0.001,4233.7,4233.6,2.36205593]
[1755820398802,0.3066,4233.7,4233.6,2.36205593]
[1755820399011,0.001,4233.7,4233.6,3.08595593]
[1755820399182,0.001,4233.7,4233.6,3.55415593]
[1755820400110,0.001,4233.7,4233.6,3.12325593]
[1755820402206,0.001,4233.7,4233.6,2.83025593]
[1755820402579,0.001,4233.7,4233.6,3.12325593]
[1755820406302,0.3066,4233.7,4233.6,0.4682]
[1755820406530,0.3066,4233.7,4233.6,2.83025593]
[1755820407099,0.3066,4233.7,4233.6,3.12325593]
[1755820407100,0.001,4233.7,4233.6,3.12325593]
[1755820407503,0.001,4233.7,4233.6,3.29829894]
[1755820408018,0.001,4233.7,4233.6,3.00529894]
[1755820408685,0.001,4233.7,4233.6,6.00529894]
[1755820409427,0.3066,4233.7,4233.6,3.64324301]
[1755820409623,11.66108865,4233.7,4232.4,4.042]
[1755820409791,0.02355063,4233.6,4232.8,5.36250236]
[1755820409996,0.4682,4233.5,4232.9,5.66902931]
[1755820410307,0.02355063,4233.4,4233.2,2.3622604]
[1755820410510,0.7738,4233.3,4233.2,2.3622604]
[1755820410828,0.7738,4233.3,4233.1,2.36233493]
[1755820411225,0.3056,4233.3,4233.1,2.36233493]
[1755820411411,0.4682,4233.2,4233.1,2.36233493]
[1755820411589,0.7738,4233.2,4233.1,2.36233493]
[1755820411790,0.7738,4233.2,4232.7,5.36251818]
[1755820411990,0.7738,4233.2,4233.0,2.36237155]
[1755820412304,0.7738,4233.2,4233.1,2.36233493]
[1755820413510,0.7738,4233.2,4232.7,3.0]
[1755820413704,0.3056,4233.2,4233.0,2.36238779]
[1755820413902,0.7738,4233.2,4232.8,0.02362502]
[1755820414131,0.7738,4233.2,4233.1,2.36233493]
[1755820414634,0.3056,4233.2,4232.8,0.004]
[1755820414795,5.86,4233.7,4233.4,2.36216752]
[1755820414796,1.818,4233.7,4233.4,2.36216752]
[1755820415003,0.001,4233.7,4233.6,5.65505593]
[1755820417837,0.3066,4233.7,4233.6,3.0]
[1755820418138,0.7778,4233.7,4233.6,3.0]
[1755820419241,0.001,4233.7,4233.6,3.2945]
[1755820419395,0.001,4233.7,4233.6,5.98600593]
[1755820419595,0.001,4233.7,4233.6,6.44830593]
[1755820420401,0.001,4233.7,4233.6,7.10830593]
[1755820425843,0.001,4233.7,4233.6,7.81841893]
[1755820427342,0.001,4233.7,4233.6,7.35611893]
[1755820427506,0.001,4233.7,4233.6,11.39511893]
[1755820429069,0.7832,4233.7,4233.6,0.710113]
[1755820429346,0.001,4233.7,4233.6,11.54858948]
[1755820429518,0.001,4233.7,4233.6,11.52496893]
[1755820429718,0.001,4233.7,4233.6,12.91368188]
[1755820432459,0.001,4233.7,4233.6,12.45138188]
[1755820432845,0.001,4233.7,4233.6,12.15988188]
[1755820433030,0.001,4233.7,4233.6,12.45438188]
[1755820440347,0.7832,4233.7,4233.6,0.710113]
[1755820440557,0.7832,4233.7,4233.2,2.36227498]
[1755820440767,0.49475063,4233.6,4233.1,2.36231632]
[1755820441068,0.49475063,4233.6,4233.2,0.710113]
[1755820441474,0.311,4233.3,4232.8,0.004]
[1755820441771,0.02355063,4233.2,4232.8,2.36645806]
[1755820442066,0.001,4233.7,4232.8,2.36645806]
[1755820442067,0.02355063,4233.4,4232.9,0.49475]
[1755820442229,0.311,4233.0,4232.9,5.85719654]
[1755820442431,0.4712,4233.3,4233.0,3.0]
[1755820442645,0.311,4233.1,4233.0,2.36239073]
[1755820442879,0.7822,4233.1,4232.9,0.49475]
[1755820443041,0.311,4233.1,4233.0,2.36239073]
[1755820443251,0.7822,4233.1,4233.0,3.0]
[1755820443573,0.7822,4233.1,4233.0,2.36239073]
[1755820443959,0.311,4233.1,4233.0,2.36239073]
[1755820444377,0.7822,4233.1,4233.0,2.36239073]
[1755820444743,0.001,4233.7,4233.0,4.11922629]
[1755820444988,0.001,4233.7,4233.4,2.36216752]
[1755820445282,0.001,4233.7,4233.6,0.2945]
[1755820445780,0.312,4233.7,4233.6,5.36205593]
[1755820445944,0.312,4233.7,4233.6,6.60397828]
[1755820446784,0.312,4233.7,4233.6,7.31420128]
[1755820448242,0.7791,4233.7,4233.6,3.710223]
[1755820448447,0.7791,4233.7,4233.6,6.07227893]
[1755820453199,0.312,4233.7,4233.6,6.07227893]
[1755820455662,0.001,4233.7,4233.6,6.07227893]
[1755820456396,0.001,4233.7,4233.6,7.49367893]
[1755820456602,0.001,4233.7,4233.6,12.50426258]
[1755820459708,0.02,4233.8,4233.7,6.02200014]
[1755820460001,1e-08,4233.8,4233.7,6.78340014]
[1755820460588,1e-08,4233.8,4233.7,13.62948857]
[1755820460790,1e-08,4234.2,4234.1,2.361777]
[1755820460980,1e-08,4234.2,4234.1,17.67984601]
[1755820461199,1e-08,4234.2,4234.1,18.12462824]
[1755820461381,1e-08,4234.2,4234.1,18.59260665]
[1755820462909,1e-08,4234.2,4234.1,18.24302824]
[1755820465304,1e-08,4234.2,4234.1,6.24553981]
[1755820465506,1e-08,4234.2,4234.1,10.61753981]
[1755820466418,1e-08,4234.2,4234.1,11.27753981]
[1755820466621,1e-08,4234.2,4234.1,11.39593981]
[1755820467195,1e-08,4234.2,4234.1,11.49059581]
[1755820470415,1e-08,4234.2,4234.1,10.90479581]
[1755820471391,1e-08,4234.2,4234.1,11.37319581]
[1755820473616,1e-08,4234.2,4234.1,10.90479581]
[1755820480613,1e-08,4234.2,4234.1,10.61179581]
[1755820481207,0.28810001,4234.2,4234.1,10.60779581]
[1755820481530,0.73210001,4234.2,4234.1,10.60779581]
[1755820481746,0.73210001,4234.2,4234.1,6.58879581]
[1755820481955,0.73210001,4234.2,4234.1,10.60779581]
[1755820482761,0.73210001,4234.2,4234.1,10.61179581]
[1755820487421,0.73210001,4234.2,4234.1,6.59279581]
[1755820487628,0.73210001,4234.2,4234.1,6.120433]
[1755820488963,0.28810001,4234.2,4234.1,6.120433]
[1755820489162,0.73210001,4234.2,4234.1,6.120433]
[1755820489336,0.28810001,4234.2,4234.1,6.120433]
[1755820489539,1e-08,4234.2,4234.1,6.120433]
[1755820489737,1e-08,4234.2,4234.1,7.37056141]
[1755820489921,0.28810001,4234.2,4234.1,7.37056141]
[1755820490935,0.73210001,4234.2,4234.1,7.37056141]
[1755820491961,0.73210001,4234.2,4234.1,11.38956141]
[1755820492385,0.73210001,4234.2,4234.1,10.139433]
[1755820500366,0.73210001,4234.2,4234.1,6.120433]
[1755820505397,0.73210001,4234.2,4234.1,0.098656]
[1755820505598,0.75565064,4234.2,4234.1,0.098656]
[1755820506081,0.75565064,4234.2,4234.1,0.004]
[1755820506468,1.91762455,4234.2,4234.1,0.004]
[1755820514199,0.28810001,4234.2,4234.1,0.004]
[1755820514385,4.77325064,4234.2,4234.1,0.004]
[1755820514591,4.74970001,4234.2,4234.1,0.004]
[1755820515022,4.74970001,4234.2,4234.1,0.714287]
[1755820515914,4.01900001,4234.2,4234.1,1.020987]
[1755820517121,1e-08,4234.2,4234.1,1.020987]
[1755820517327,4.01900001,4234.2,4234.1,1.020987]
[1755820517524,4.01900001,4234.2,4234.1,0.714287]
[1755820518693,1e-08,4234.2,4234.1,1.020987]
[1755820518898,4.01800001,4234.2,4234.1,1.020987]
[1755820519230,4.01800001,4234.2,4234.1,0.714287]
[1755820519807,4.32860001,4234.2,4234.1,0.714287]
[1755820522456,4.01800001,4234.2,4234.1,1.020987]
[1755820523046,1e-08,4234.2,4234.1,6.5309327]